fUSD/lending_fUSD_20240125
["ID","MTS","AMOUNT","RATE_DAILY","PERIOD"]
[312720360,1706188908877,-500.0,0.00050958,31]
[312720361,1706188908909,-664.74,0.00050958,31]
[312720362,1706188908944,-498.18968213,0.00050958,31]
[312720363,1706188908975,-500.0,0.00050958,31]
[312720364,1706188909007,-552.93,0.00050958,31]
[312720365,1706188909040,-500.0,0.00050958,31]
[312720366,1706188909074,-569.49,0.00050958,31]
[312720367,1706188909108,-538.01,0.00050958,31]
[312720368,1706188909142,-651.62,0.00050958,31]
[312720369,1706188909177,-567.83,0.00050958,31]
[312720370,1706188909211,-500.0,0.00050958,31]
[312720371,1706188909244,-3543.8,0.00050958,31]
[312720372,1706188909278,-500.0,0.00050958,31]
[312720373,1706188909313,-500.0,0.00050958,31]
[312720374,1706188909348,-500.0,0.00050958,31]
[312720375,1706188909383,-500.0,0.00050958,31]
[312720376,1706188909418,-500.0,0.00050958,31]
[312720377,1706188909454,-500.0,0.00050958,31]
[312720378,1706188909490,-500.0,0.00050958,31]
[312720379,1706188909523,-594.79,0.00050958,31]
[312720380,1706188909555,-500.0,0.00050958,31]
[312720381,1706188909587,-611.77,0.00050958,31]
[312720382,1706188909620,-502.34,0.00050958,31]
[312720383,1706188909652,-549.63,0.00050958,31]
[312720384,1706188909684,-513.18,0.00050958,31]
[312720385,1706188909716,-500.0,0.00050958,31]
[312720386,1706188909747,-591.91,0.00050958,31]
[312720387,1706188909781,-500.0,0.00050958,31]
[312720388,1706188909813,-500.0,0.00050958,31]
[312720389,1706188909846,-892.35,0.00050958,31]
[312720390,1706188909877,-565.29,0.00050958,31]
[312720391,1706188909909,-500.0,0.00050958,31]
[312720392,1706188909942,-500.0,0.00050958,31]
[312720393,1706188909975,-500.0,0.00050958,31]
[312720394,1706188910008,-500.0,0.00050958,31]
[312720395,1706188910041,-500.0,0.00050958,31]
[312720396,1706188910076,-696.05,0.00050958,31]
[312720397,1706188910110,-503.96,0.00050958,31]
[312720398,1706188910146,-500.0,0.00050958,31]
[312720399,1706188910179,-500.0,0.00050958,31]
[312720400,1706188910214,-1045.18,0.00050958,31]
[312720401,1706188910248,-500.0,0.00050958,31]
[312720402,1706188910286,-500.0,0.00050958,31]
[312720403,1706188910321,-505.83,0.00050958,31]
[312720404,1706188910358,-8322.88,0.00050958,31]
[312720405,1706188910393,-500.0,0.00050958,31]
[312720406,1706188910427,-569.95,0.00050958,31]
[312720407,1706188910649,-616.19,0.00050958,31]
[312720408,1706188910691,-500.0,0.00050958,31]
[312720409,1706188910726,-500.0,0.00050958,31]
[312720410,1706188910759,-1085.14,0.00050958,31]
[312720411,1706188910790,-740.01,0.00050958,31]
[312720412,1706188910822,-500.0,0.00050958,31]
[312720413,1706188910856,-658.74,0.00050958,31]
[312720414,1706188910889,-728.72,0.00050958,31]
[312720415,1706188910922,-500.0,0.00050958,31]
[312720416,1706188910952,-500.0,0.00050958,31]
[312720417,1706188910985,-1240.04,0.00050958,31]
[312720418,1706188911017,-1773.53,0.00050958,31]
[312720419,1706188911049,-599.04,0.00050958,31]
[312720420,1706188911082,-808.35,0.00050958,31]
[312720421,1706188911117,-605.14,0.00050958,31]
[312720422,1706188911151,-500.0,0.00050958,31]
[312720423,1706188911186,-500.0,0.00050958,31]
[312720424,1706188911224,-880.58,0.00050958,31]
[312720425,1706188911260,-500.0,0.00050958,31]
[312720426,1706188911298,-903.12,0.00050958,31]
[312720427,1706188911336,-545.45,0.00050958,31]
[312720428,1706188911374,-500.0,0.00050958,31]
[312720429,1706188911409,-3577.61,0.00050958,31]
[312720430,1706188911443,-500.0,0.00050958,31]
[312720431,1706188911478,-685.58,0.00050958,31]
[312720432,1706188911512,-562.88,0.00050958,31]
[312720433,1706188911545,-952.48,0.00050958,31]
[312720434,1706188911577,-500.0,0.00050958,31]
[312720435,1706188911610,-500.0,0.00050958,31]
[312720436,1706188911644,-818.92,0.00050958,31]
[312720437,1706188911678,-567.03,0.00050958,31]
[312720438,1706188911712,-500.0,0.00050958,31]
[312720439,1706188911747,-702.34,0.00050958,31]
[312720440,1706188911783,-529.03,0.00050958,31]
[312720441,1706188911817,-500.0,0.00050958,31]
[312720442,1706188911851,-506.1,0.00050958,31]
[312720443,1706188911884,-919.78,0.00050958,31]
[312720444,1706188911920,-682.14,0.00050958,31]
[312720445,1706188911953,-500.0,0.00050958,31]
[312720446,1706188911988,-500.0,0.00050958,31]
[312720447,1706188912024,-500.0,0.00050958,31]
[312720448,1706188912063,-1207.59,0.00050958,31]
[312720449,1706188912101,-500.0,0.00050958,31]
[312720450,1706188912139,-575.64,0.00050958,31]
[312720451,1706188912171,-500.0,0.00050958,31]
[312720452,1706188912203,-500.0,0.00050958,31]
[312720453,1706188912237,-500.0,0.00050958,31]
[312720454,1706188912271,-1305.94,0.00050958,31]
[312720455,1706188912304,-945.14,0.00050958,31]
[312720456,1706188912338,-668.31,0.00050958,31]
[312720457,1706188912373,-500.0,0.00050958,31]
[312720458,1706188912407,-538.49,0.00050958,31]
[312720459,1706188912443,-919.42,0.00050958,31]
[312720460,1706188912481,-500.0,0.00050958,31]
[312720461,1706188912513,-621.93,0.00050958,31]
[312720462,1706188912546,-1198.03,0.00050958,31]
[312720463,1706188912578,-500.0,0.00050958,31]
[312720464,1706188912612,-791.89,0.00050958,31]
[312720465,1706188912644,-1243.05,0.00050958,31]
[312720466,1706188912676,-500.0,0.00050958,31]
[312720467,1706188912707,-500.0,0.00050958,31]
[312720468,1706188912738,-500.0,0.00050958,31]
[312720469,1706188912769,-500.0,0.00050958,31]
[312720470,1706188912800,-558.35,0.00050958,31]
[312720471,1706188912832,-500.0,0.00050958,31]
[312720472,1706188912865,-500.0,0.00050958,31]
[312720473,1706188912897,-500.0,0.00050958,31]
[312720474,1706188912930,-517.3,0.00050958,31]
[312720475,1706188912962,-689.62,0.00050958,31]
[312720476,1706188912997,-720.97,0.00050958,31]
[312720477,1706188913031,-500.0,0.00050958,31]
[312720478,1706188913065,-504.11,0.00050958,31]
[312720479,1706188913100,-2344.2,0.00050958,31]
[312720480,1706188913135,-500.0,0.00050958,31]
[312720481,1706188913170,-691.44,0.00050958,31]
[312720482,1706188913205,-1094.16,0.00050958,31]
[312720483,1706188913238,-550.56,0.00050958,31]
[312720484,1706188913271,-500.0,0.00050958,31]
[312720485,1706188913306,-900.04,0.00050958,31]
[312720486,1706188913341,-518.45,0.00050958,31]
[312720487,1706188913379,-900.8,0.00050958,31]
[312720488,1706188913415,-500.76,0.00050958,31]
[312720489,1706188913452,-500.0,0.00050958,31]
[312720490,1706188913490,-521.94,0.00050958,31]
[312720491,1706188913528,-500.0,0.00050958,31]
[312720492,1706188913570,-500.0,0.00050958,31]
[312720493,1706188913605,-890.01,0.00050958,31]
[312720494,1706188913641,-634.63,0.00050958,31]
[312720495,1706188913675,-345.27240293,0.00050958,31]
[312720496,1706188913708,-500.0,0.00050958,31]
[312720497,1706188913740,-500.0,0.00050958,31]
[312720498,1706188913773,-500.0,0.00050958,31]
[312720499,1706188913804,-1000.0,0.00050958,30]
[312720500,1706188913835,-4298.96,0.00050958,31]
[312720501,1706188913867,-500.0,0.00050958,31]
[312720502,1706188913903,-500.0,0.00050958,31]
[312720503,1706188913938,-500.0,0.00050958,31]
[312720504,1706188913972,-500.0,0.00050958,31]
[312720505,1706188914007,-500.0,0.00050958,31]
[312720506,1706188914042,-834.57,0.00050958,31]
[312720507,1706188914078,-500.0,0.00050958,31]
[312720508,1706188914117,-500.0,0.00050958,31]
[312720509,1706188914154,-2659.22,0.00050958,31]
[312720510,1706188914192,-500.0,0.00050958,31]
[312720511,1706188914406,-706.5,0.00050958,31]
[312720512,1706188914457,-502.47,0.00050958,31]
[312720513,1706188914507,-511.82,0.00050958,31]
[312720514,1706188914548,-500.0,0.00050958,31]
[312720515,1706188914586,-735.0,0.00050958,31]
[312720516,1706188914626,-500.0,0.00050958,31]
[312720517,1706188914666,-500.0,0.00050958,31]
[312720518,1706188914708,-650.71,0.00050958,31]
[312720519,1706188914748,-515.77,0.00050958,31]
[312720520,1706188914788,-500.0,0.00050958,31]
[312720521,1706188914829,-2609.6,0.00050958,31]
[312720522,1706188914866,-1043.27,0.00050958,31]
[312720523,1706188914903,-2040.87,0.00050958,31]
[312720524,1706188914940,-500.0,0.00050958,31]
[312720525,1706188914977,-626.01,0.00050958,31]
[312720526,1706188915014,-500.0,0.00050958,31]
[312720527,1706188915054,-500.0,0.00050958,31]
[312720528,1706188915094,-328.05082994,0.00051,30]
[312720529,1706188915136,-150.0,0.00051,120]
[312720530,1706188915177,-67970.0,0.0005115,30]
[312720531,1706188915217,-286.50735014,0.0005115,30]
[312720532,1706188915255,-1823.0,0.0005115,30]
[312720533,1706188915294,-431.0,0.0005115,30]
[312720534,1706188915329,-329.0,0.0005115,30]
[312720535,1706188915365,-1224.41,0.00051232,31]
[312720536,1706188915399,-551.45,0.00051232,31]
[312720537,1706188915433,-500.0,0.00051232,31]
[312720538,1706188915469,-1626.34,0.00051232,31]
[312720539,1706188915502,-2576.58,0.00051232,31]
[312720540,1706188915535,-500.0,0.00051232,31]
[312720541,1706188915571,-500.0,0.00051232,31]
[312720542,1706188915604,-500.0,0.00051232,31]
[312720543,1706188915637,-500.0,0.00051232,31]
[312720544,1706188915672,-500.0,0.00051232,31]
[312720545,1706188915707,-500.0,0.00051232,31]
[312720546,1706188915743,-500.0,0.00051232,31]
[312720547,1706188915779,-500.0,0.00051232,31]
[312720548,1706188915819,-687.4,0.00051232,31]
[312720549,1706188915856,-500.0,0.00051232,31]
[312720550,1706188915893,-500.0,0.00051232,31]
[312720551,1706188915928,-500.0,0.00051232,31]
[312720552,1706188915962,-500.0,0.00051232,31]
[312720553,1706188915995,-624.67,0.00051232,31]
[312720554,1706188916028,-500.0,0.00051232,31]
[312720555,1706188916064,-500.0,0.00051232,31]
[312720556,1706188916103,-500.0,0.00051232,31]
[312720557,1706188916141,-500.0,0.00051232,31]
[312720558,1706188916178,-500.0,0.00051232,31]
[312720559,1706188916217,-500.0,0.00051232,31]
[312720560,1706188916256,-500.0,0.00051232,31]
[312720561,1706188916296,-500.0,0.00051232,31]
[312720562,1706188916336,-500.0,0.00051232,31]
[312720563,1706188916376,-500.0,0.00051232,31]
[312720564,1706188916411,-543.47,0.00051232,31]
[312720565,1706188916445,-500.0,0.00051232,31]
[312720566,1706188916479,-500.0,0.00051232,31]
[312720567,1706188916513,-500.0,0.00051232,31]
[312720568,1706188916545,-511.97,0.00051232,31]
[312720569,1706188916578,-500.0,0.00051232,31]
[312720570,1706188916611,-500.0,0.00051232,31]
[312720571,1706188916643,-500.0,0.00051232,31]
[312720572,1706188916677,-500.0,0.00051232,31]
[312720573,1706188916713,-500.0,0.00051232,31]
[312720574,1706188916749,-500.0,0.00051232,31]
[312720575,1706188916785,-500.0,0.00051232,31]
[312720576,1706188916820,-350.74396208,0.00051232,31]
[312720577,1706188916855,-500.0,0.00051232,31]
[312720578,1706188916890,-500.0,0.00051232,31]
[312720579,1706188916926,-500.0,0.00051232,31]
[312720580,1706188916959,-500.0,0.00051232,31]
[312720581,1706188916994,-500.0,0.00051232,31]
[312720582,1706188917030,-500.0,0.00051232,31]
[312720583,1706188917067,-500.0,0.00051232,31]
[312720584,1706188917104,-520.94,0.00051232,31]
[312720585,1706188917140,-674.26,0.00051232,31]
[312720586,1706188917175,-500.0,0.00051232,31]
[312720587,1706188917213,-500.0,0.00051232,31]
[312720588,1706188917250,-500.0,0.00051232,31]
[312720589,1706188917289,-500.0,0.00051232,31]
[312720590,1706188917329,-500.0,0.00051232,31]
[312720591,1706188917366,-500.0,0.00051232,31]
[312720592,1706188917398,-500.0,0.00051232,31]
[312720593,1706188917431,-500.0,0.00051232,31]
[312720594,1706188917464,-533.97461522,0.00051232,31]
[312720595,1706188917498,-453.85805728,0.00051232,31]
[312720596,1706188917531,-500.0,0.00051232,31]
[312720597,1706188917565,-500.0,0.00051232,31]
[312720598,1706188917602,-500.0,0.00051232,31]
[312720599,1706188917638,-500.0,0.00051232,31]
[312720600,1706188917676,-500.0,0.00051232,31]
[312720601,1706188917713,-500.0,0.00051232,31]
[312720602,1706188917749,-500.0,0.00051232,31]
[312720603,1706188917788,-500.0,0.00051232,31]
[312720604,1706188917826,-500.0,0.00051232,31]
[312720605,1706188917864,-500.0,0.00051232,31]
[312720606,1706188917900,-500.0,0.00051232,31]
[312720607,1706188917938,-190.09517649,0.00051232,31]
[312720608,1706188917978,-622.82,0.00051232,31]
[312720609,1706188918018,-848.34,0.00051232,31]
[312720610,1706188918060,-500.0,0.00051232,31]
[312720611,1706188918100,-500.0,0.00051232,31]
[312720612,1706188918135,-500.0,0.00051232,31]
[312720613,1706188918170,-692.14,0.00051232,31]
[312720614,1706188918207,-500.0,0.00051232,31]
[312720615,1706188918419,-500.0,0.00051232,31]
[312720616,1706188918459,-500.0,0.00051232,31]
[312720617,1706188918499,-531.51,0.00051232,31]
[312720618,1706188918535,-723.91,0.00051232,31]
[312720619,1706188918570,-500.0,0.00051232,31]
[312720620,1706188918605,-500.0,0.00051232,31]
[312720621,1706188918639,-500.0,0.00051232,31]
[312720622,1706188918674,-500.0,0.00051232,31]
[312720623,1706188918707,-500.0,0.00051232,31]
[312720624,1706188918741,-500.0,0.00051232,31]
[312720625,1706188918775,-500.0,0.00051232,31]
[312720626,1706188918812,-500.0,0.00051232,31]
[312720627,1706188918850,-500.0,0.00051232,31]
[312720628,1706188918889,-500.0,0.00051232,31]
[312720629,1706188918924,-500.0,0.00051232,31]
[312720630,1706188918959,-500.0,0.00051232,31]
[312720631,1706188918993,-500.0,0.00051232,31]
[312720632,1706188919028,-500.0,0.00051232,31]
[312720633,1706188919064,-500.0,0.00051232,31]
[312720634,1706188919100,-500.0,0.00051232,31]
[312720635,1706188919133,-500.0,0.00051232,31]
[312720636,1706188919167,-500.0,0.00051232,31]
[312720637,1706188919202,-518.42,0.00051232,31]
[312720638,1706188919237,-500.0,0.00051232,31]
[312720639,1706188919270,-556.54,0.00051232,31]
[312720640,1706188919305,-500.0,0.00051232,31]
[312720641,1706188919342,-500.0,0.00051232,31]
[312720642,1706188919380,-500.0,0.00051232,31]
[312720643,1706188919415,-500.0,0.00051232,31]
[312720644,1706188919452,-250.0,0.00051232,31]
[312720645,1706188919490,-500.0,0.00051232,31]
[312720646,1706188919527,-500.0,0.00051232,31]
[312720647,1706188919567,-568.52,0.00051232,31]
[312720648,1706188919608,-653.44,0.00051232,31]
[312720649,1706188919645,-500.0,0.00051232,31]
[312720650,1706188919680,-500.0,0.00051232,31]
[312720651,1706188919717,-500.0,0.00051232,31]
[312720652,1706188919754,-500.0,0.00051232,31]
[312720653,1706188919789,-500.0,0.00051232,31]
[312720654,1706188919823,-500.0,0.00051232,31]
[312720655,1706188919858,-500.0,0.00051232,31]
[312720656,1706188919892,-500.0,0.00051232,31]
[312720657,1706188919923,-628.96,0.00051232,31]
[312720658,1706188919954,-500.0,0.00051232,31]
[312720659,1706188919984,-523.72,0.00051232,31]
[312720660,1706188920017,-500.0,0.00051232,31]
[312720661,1706188920051,-500.0,0.00051232,31]
[312720662,1706188920084,-899.54,0.00051232,31]
[312720663,1706188920118,-500.0,0.00051232,31]
[312720664,1706188920151,-500.0,0.00051232,31]
[312720665,1706188920184,-500.0,0.00051232,31]
[312720666,1706188920216,-500.0,0.00051232,31]
[312720667,1706188920248,-500.0,0.00051232,31]
[312720668,1706188920283,-500.0,0.00051232,31]
[312720669,1706188920315,-500.0,0.00051232,31]
[312720670,1706188920348,-500.0,0.00051232,31]
[312720671,1706188920381,-500.0,0.00051232,31]
[312720672,1706188920415,-500.0,0.00051232,31]
[312720673,1706188920452,-500.0,0.00051232,31]
[312720674,1706188920487,-500.0,0.00051232,31]
[312720675,1706188920526,-528.11,0.00051232,31]
[312720676,1706188920563,-500.0,0.00051232,31]
[312720677,1706188920607,-500.0,0.00051232,31]
[312720678,1706188920646,-1037.12,0.00051232,31]
[312720679,1706188920684,-500.0,0.00051232,31]
[312720680,1706188920719,-500.0,0.00051232,31]
[312720681,1706188920754,-500.0,0.00051232,31]
[312720682,1706188920790,-358.18023583,0.00051232,30]
[312720683,1706188920825,-500.0,0.00051232,31]
[312720684,1706188920861,-500.0,0.00051232,31]
[312720685,1706188920895,-500.0,0.00051232,31]
[312720686,1706188920931,-500.0,0.00051232,31]
[312720687,1706188920968,-500.0,0.00051232,31]
[312720688,1706188921001,-500.0,0.00051232,31]
[312720689,1706188921036,-500.0,0.00051232,31]
[312720690,1706188921070,-500.0,0.00051232,31]
[312720691,1706188921105,-500.0,0.00051232,31]
[312720692,1706188921138,-500.0,0.00051232,31]
[312720693,1706188921171,-500.0,0.00051232,31]
[312720694,1706188921203,-500.0,0.00051232,31]
[312720695,1706188921235,-500.0,0.00051232,31]
[312720696,1706188921268,-500.0,0.00051232,31]
[312720697,1706188921303,-500.0,0.00051232,31]
[312720698,1706188921341,-500.0,0.00051232,31]
[312720699,1706188921381,-500.0,0.00051232,31]
[312720700,1706188921420,-500.0,0.00051232,31]
[312720701,1706188921459,-500.0,0.00051232,31]
[312720702,1706188921500,-500.0,0.00051232,31]
[312720703,1706188921534,-500.0,0.00051232,31]
[312720704,1706188921573,-500.0,0.00051232,31]
[312720705,1706188921607,-500.0,0.00051232,31]
[312720706,1706188921642,-500.0,0.00051232,31]
[312720707,1706188921679,-500.0,0.00051232,31]
[312720708,1706188921712,-500.0,0.00051232,31]
[312720709,1706188921745,-500.0,0.00051232,31]
[312720710,1706188921778,-500.0,0.00051232,31]
[312720711,1706188921811,-500.0,0.00051232,31]
[312720712,1706188921846,-500.0,0.00051232,31]
[312720713,1706188921880,-500.0,0.00051232,31]
[312720714,1706188921914,-533.46,0.00051232,31]
[312720715,1706188921947,-501.9,0.00051232,31]
[312720716,1706188921983,-1106.47,0.00051232,31]
[312720717,1706188922018,-500.0,0.00051232,31]
[312720718,1706188922206,-500.0,0.00051232,31]
[312720719,1706188922247,-500.0,0.00051232,31]
[312720720,1706188922283,-500.0,0.00051232,31]
[312720721,1706188922317,-592.37988932,0.00051232,31]
[312720722,1706188922355,-500.0,0.00051232,31]
[312720723,1706188922391,-500.0,0.00051232,31]
[312720724,1706188922427,-500.0,0.00051232,31]
[312720725,1706188922463,-3932.94,0.00051232,30]
[312720726,1706188922498,-500.0,0.00051232,31]
[312720727,1706188922533,-500.0,0.00051232,31]
[312720728,1706188922567,-553.31,0.00051232,31]
[312720729,1706188922600,-500.0,0.00051232,31]
[312720730,1706188922633,-500.0,0.00051232,31]
[312720731,1706188922669,-500.0,0.00051232,31]
[312720732,1706188922704,-1880.79,0.00051232,31]
[312720733,1706188922737,-582.46,0.00051232,31]
[312720734,1706188922772,-500.0,0.00051232,31]
[312720735,1706188922804,-500.0,0.00051232,31]
[312720736,1706188922837,-511.13315871,0.00051232,31]
[312720737,1706188922873,-500.0,0.00051232,31]
[312720738,1706188922908,-3956.45,0.00051232,31]
[312720739,1706188922942,-500.0,0.00051232,31]
[312720740,1706188922975,-500.0,0.00051232,31]
[312720741,1706188923010,-500.0,0.00051232,31]
[312720742,1706188923044,-500.0,0.00051232,31]
[312720743,1706188923079,-500.0,0.00051232,31]
[312720744,1706188923114,-500.0,0.00051232,31]
[312720745,1706188923148,-500.0,0.00051232,31]
[312720746,1706188923184,-500.0,0.00051232,31]
[312720747,1706188923220,-500.0,0.00051232,31]
[312720748,1706188923254,-500.0,0.00051232,31]
[312720749,1706188923293,-500.0,0.00051232,31]
[312720750,1706188923327,-678.41,0.00051232,31]
[312720751,1706188923361,-500.0,0.00051232,31]
[312720752,1706188923394,-500.0,0.00051232,31]
[312720753,1706188923431,-500.0,0.00051232,31]
[312720754,1706188923469,-500.0,0.00051232,31]
[312720755,1706188923504,-500.0,0.00051232,31]
[312720756,1706188923540,-500.0,0.00051232,31]
[312720757,1706188923576,-500.0,0.00051232,31]
[312720758,1706188923610,-500.0,0.00051232,31]
[312720759,1706188923644,-549.93,0.00051232,31]
[312720760,1706188923680,-500.0,0.00051232,31]
[312720761,1706188923713,-500.0,0.00051232,31]
[312720762,1706188923745,-679.41,0.00051232,31]
[312720763,1706188923777,-500.0,0.00051232,31]
[312720764,1706188923810,-509.93,0.00051232,31]
[312720765,1706188923842,-500.0,0.00051232,31]
[312720766,1706188923876,-500.0,0.00051232,31]
[312720767,1706188923911,-500.0,0.00051232,31]
[312720768,1706188923947,-500.0,0.00051232,31]
[312720769,1706188923981,-192.2,0.00051232,31]
[312720770,1706188924014,-500.0,0.00051232,31]
[312720771,1706188924047,-500.0,0.00051232,31]
[312720772,1706188924082,-500.0,0.00051232,31]
[312720773,1706188924116,-500.0,0.00051232,31]
[312720774,1706188924152,-500.0,0.00051232,31]
[312720775,1706188924187,-500.0,0.00051232,31]
[312720776,1706188924220,-1090.07,0.00051232,31]
[312720777,1706188924254,-500.0,0.00051232,31]
[312720778,1706188924289,-521.96,0.00051232,31]
[312720779,1706188924325,-684.55,0.00051232,31]
[312720780,1706188924362,-500.0,0.00051232,31]
[312720781,1706188924397,-500.0,0.00051232,31]
[312720782,1706188924433,-500.0,0.00051232,31]
[312720783,1706188924470,-500.0,0.00051232,31]
[312720784,1706188924506,-500.0,0.00051232,31]
[312720785,1706188924543,-557.35,0.00051232,31]
[312720786,1706188924578,-500.0,0.00051232,31]
[312720787,1706188924616,-500.0,0.00051232,31]
[312720788,1706188924656,-500.0,0.00051232,31]
[312720789,1706188924694,-500.0,0.00051232,31]
[312720790,1706188924731,-753.41,0.00051232,31]
[312720791,1706188924768,-500.0,0.00051232,31]
[312720792,1706188924804,-500.0,0.00051232,31]
[312720793,1706188924838,-500.0,0.00051232,31]
[312720794,1706188924874,-500.0,0.00051232,31]
[312720795,1706188924909,-500.0,0.00051232,31]
[312720796,1706188924943,-500.0,0.00051232,31]
[312720797,1706188924976,-761.84,0.00051232,31]
[312720798,1706188925009,-500.0,0.00051232,31]
[312720799,1706188925044,-507.48,0.00051232,31]
[312720800,1706188925080,-500.0,0.00051232,31]
[312720801,1706188925117,-500.0,0.00051232,31]
[312720802,1706188925154,-500.0,0.00051232,31]
[312720803,1706188925190,-500.0,0.00051232,31]
[312720804,1706188925224,-500.0,0.00051232,31]
[312720805,1706188925257,-500.0,0.00051232,31]
[312720806,1706188925292,-1413.36,0.00051232,31]
[312720807,1706188925326,-1123.79,0.00051232,31]
[312720808,1706188925361,-500.0,0.00051232,31]
[312720809,1706188925394,-500.0,0.00051232,31]
[312720810,1706188925427,-500.0,0.00051232,31]
[312720811,1706188925462,-500.0,0.00051232,31]
[312720812,1706188925497,-2527.99,0.00051232,31]
[312720813,1706188925533,-500.0,0.00051232,31]
[312720814,1706188925568,-627.32952407,0.00051232,31]
[312720815,1706188925603,-2252.57,0.00051232,31]
[312720816,1706188925637,-500.0,0.00051232,31]
[312720817,1706188925672,-500.0,0.00051232,31]
[312720818,1706188925710,-4785.39,0.00051232,31]
[312720819,1706188925745,-681.67,0.00051232,31]
[312720820,1706188925779,-757.11,0.00051232,31]
[312720821,1706188925812,-500.0,0.00051232,31]
[312720822,1706188926000,-500.0,0.00051232,31]
[312720823,1706188926042,-578.13,0.00051232,31]
[312720824,1706188926080,-500.0,0.00051232,31]
[312720825,1706188926119,-1195.74,0.00051232,31]
[312720826,1706188926159,-550.27087801,0.00051232,31]
[312720827,1706188926196,-646.08,0.00051232,31]
[312720828,1706188926236,-500.0,0.00051232,31]
[312720829,1706188926274,-500.0,0.00051232,31]
[312720830,1706188926311,-500.0,0.00051232,31]
[312720831,1706188926347,-168.83718923,0.00051232,31]
[312720832,1706188926388,-668.94,0.00051232,31]
[312720833,1706188926427,-500.0,0.00051232,31]
[312720834,1706188926469,-500.0,0.00051232,31]
[312720835,1706188926511,-500.0,0.00051232,31]
[312720836,1706188926549,-500.0,0.00051232,31]
[312720837,1706188926587,-624.44,0.00051232,31]
[312720838,1706188926621,-500.0,0.00051232,31]
[312720839,1706188926658,-500.0,0.00051232,31]
[312720840,1706188926692,-500.0,0.00051232,31]
[312720841,1706188926728,-500.0,0.00051232,31]
[312720842,1706188926764,-500.0,0.00051232,31]
[312720843,1706188926797,-664.74,0.00051232,31]
[312720844,1706188926830,-500.0,0.00051232,31]
[312720845,1706188926867,-552.93,0.00051232,31]
[312720846,1706188926901,-500.0,0.00051232,31]
[312720847,1706188926938,-569.49,0.00051232,31]
[312720848,1706188926971,-651.62,0.00051232,31]
[312720849,1706188927006,-538.01,0.00051232,31]
[312720850,1706188927040,-567.83,0.00051232,31]
[312720851,1706188927074,-3543.8,0.00051232,31]
[312720852,1706188927110,-500.0,0.00051232,31]
[312720853,1706188927143,-500.0,0.00051232,31]
[312720854,1706188927176,-500.0,0.00051232,31]
[312720855,1706188927211,-500.0,0.00051232,31]
[312720856,1706188927246,-500.0,0.00051232,31]
[312720857,1706188927282,-500.0,0.00051232,31]
[312720858,1706188927317,-500.0,0.00051232,31]
[312720859,1706188927353,-500.0,0.00051232,31]